fUSD/lending_fUSD_20240118
["ID","MTS","AMOUNT","RATE_DAILY","PERIOD"]
[312081388,1705604995768,161.68586552,0.00019526,2]
[312081390,1705605004821,447.36775998,0.00019309,2]
[312081391,1705605008379,1852.58418893,0.00021602,2]
[312081392,1705605011770,161.68586552,0.00019526,2]
[312081393,1705605021243,3789.45251597,0.00019309,2]
[312081394,1705605022778,228.31585659,0.00021602,2]
[312081395,1705605024703,1060.96854815,0.00021602,2]
[312081396,1705605024818,545.73184105,0.00019309,2]
[312081397,1705605030758,8804.79866001,0.00019526,5]
[312081416,1705605031966,-155.0,0.00021603,2]
[312081420,1705605031979,-843.17283709,0.00021603,2]
[312081422,1705605031988,-155.0,0.00021603,2]
[312081424,1705605031997,-215.11040998,0.00021604,2]
[312081426,1705605032006,-2744.05327963,0.00021604,2]
[312081428,1705605032018,-286.05810071,0.00021604,2]
[312081430,1705605032027,-4350.07010966,0.00021604,2]
[312081432,1705605032036,-155.0,0.00021604,2]
[312081434,1705605032045,-190.90927065,0.00021604,2]
[312081436,1705605032054,-3413.76050566,0.0002161,2]
[312081439,1705605032142,-278.19072179,0.0002161,2]
[312081440,1705605032206,-678.12709096,0.0002161,2]
[312081441,1705605032266,-738.82860622,0.0002161,2]
[312081443,1705605032278,-729.44799508,0.0002161,2]
[312081460,1705605033787,161.68586552,0.00019526,2]
[312081461,1705605034884,2553.72,0.00021219,2]
[312081471,1705605037985,-17290.13427856,0.0002161,2]
[312081472,1705605038047,-926.00155544,0.0002161,2]
[312081473,1705605038063,-438.47,0.0002161,2]
[312081474,1705605038079,-15068.04121555,0.0002161,2]
[312081475,1705605038093,-2071.73589006,0.0002161,2]
[312081476,1705605038124,-6486.32809007,0.0002161,2]
[312081477,1705605038270,-81245.45920385,0.0002161,2]
[312081478,1705605038281,-289.13502754,0.00021611,2]
[312081479,1705605038293,-289.13502754,0.00021611,2]
[312081480,1705605038305,-289.13502754,0.00021611,2]
[312081481,1705605038316,-289.13502754,0.00021611,2]
[312081482,1705605038328,-289.13502754,0.00021611,2]
[312081483,1705605038339,-289.13502754,0.00021611,2]
[312081484,1705605038350,-289.13502754,0.00021611,2]
[312081485,1705605038361,-289.13502754,0.00021611,2]
[312081488,1705605038372,-289.13502754,0.00021611,2]
[312081490,1705605038383,-289.13502754,0.00021611,2]
[312081492,1705605038394,-289.13502754,0.00021611,2]
[312081494,1705605038405,-289.13502754,0.00021611,2]
[312081495,1705605038416,-289.13502754,0.00021611,2]
[312081496,1705605038427,-289.13502754,0.00021611,2]
[312081497,1705605038438,-289.13502754,0.00021611,2]
[312081498,1705605038450,-289.13502754,0.00021611,2]
[312081499,1705605038461,-289.13502754,0.00021611,2]
[312081500,1705605038472,-289.13502754,0.00021611,2]
[312081501,1705605038492,-289.13502754,0.00021611,2]
[312081502,1705605038504,-289.13502754,0.00021611,2]
[312081503,1705605038516,-289.13502754,0.00021611,2]
[312081504,1705605038528,-289.13502754,0.00021611,2]
[312081505,1705605038541,-289.13502754,0.00021611,2]
[312081506,1705605038553,-289.13502754,0.00021611,2]
[312081507,1705605038565,-289.13502754,0.00021611,2]
[312081508,1705605038578,-289.13502754,0.00021611,2]
[312081509,1705605038590,-289.13502754,0.00021611,2]
[312081510,1705605038602,-289.13502754,0.00021611,2]
[312081511,1705605038613,-289.13502754,0.00021611,2]
[312081512,1705605038625,-289.13502754,0.00021611,2]
[312081513,1705605038637,-289.13502754,0.00021611,2]
[312081514,1705605038648,-289.13502754,0.00021611,2]
[312081515,1705605038660,-289.13502754,0.00021611,2]
[312081516,1705605038672,-289.13502754,0.00021611,2]
[312081517,1705605038683,-289.13502754,0.00021611,2]
[312081518,1705605038695,-1000.0,0.00021613,2]
[312081519,1705605038706,-10200.79388946,0.00021615,2]
[312081520,1705605038718,-1682.9973572,0.00021621,2]
[312081521,1705605038731,-169.53,0.00021681,2]
[312081522,1705605038742,-226.14,0.00021681,2]
[312081523,1705605038753,-282.76,0.00021681,2]
[312081524,1705605038764,-5759.19,0.00021695,2]
[312081525,1705605038776,-326.48533003,0.00021695,2]
[312081526,1705605038788,-502.79924521,0.00021695,2]
[312081527,1705605038800,-375.80233688,0.00021695,2]
[312081528,1705605038816,-156.83636382,0.00021695,2]
[312081529,1705605038829,-155.0,0.00021695,2]
[312081530,1705605038841,-5097.91782356,0.00021695,2]
[312081531,1705605038854,-1852.58418893,0.00021695,2]
[312081532,1705605038866,-228.31585659,0.00021695,2]
[312081533,1705605038878,-2054.8085,0.00021696,2]
[312081534,1705605038890,-185600.81769062,0.00021697,2]
[312081535,1705605038902,-30386.3761,0.00021698,2]
[312081536,1705605038914,-1000.0,0.00021698,2]
[312081537,1705605038925,-299.99,0.000217,7]
[312081538,1705605038937,-183.54,0.000217,2]
[312081539,1705605038949,-14171.51826178,0.00021795,2]
[312081540,1705605038960,-155.0,0.00021796,2]
[312081541,1705605038972,-2120.15019908,0.00021796,2]
[312081542,1705605038984,-94657.32274503,0.00021796,2]
[312081543,1705605038996,-2951.77663867,0.00021796,2]
[312081544,1705605039007,-581.48502557,0.00021796,2]
[312081545,1705605039021,-155.94960001,0.00021796,2]
[312081546,1705605039032,-3213.87846263,0.00021797,2]
[312081547,1705605039043,-4752.15662041,0.00021798,2]
[312081548,1705605039054,-735.9717,0.000218,2]
[312081549,1705605039065,-164.13727911,0.00021818,2]
[312081550,1705605039076,-182.71826451,0.00021818,2]
[312081551,1705605039087,-505714.14246892,0.000219,2]
[312081552,1705605039098,-250.0,0.00021918,2]
[312081553,1705605039108,-164.13727905,0.00021973,2]
[312081554,1705605039119,-3195.13608794,0.00022,2]
[312081555,1705605039130,-942.57889704,0.00022,2]
[312081556,1705605039144,-164.13727905,0.00022127,2]
[312081557,1705605039157,-159.6,0.00022219,2]
[312081558,1705605039168,-164.13727905,0.00022282,2]
[312081559,1705605039178,-288.29553912,0.00022384,2]
[312081560,1705605039189,-164.13727905,0.00022436,2]
[312081561,1705605039200,-362.36700236,0.000225,2]
[312081562,1705605039211,-288.29553912,0.00022556,2]
[312081563,1705605039222,-164.13727905,0.00022591,2]
[312081564,1705605039234,-1186.19379517,0.00022728,3]
[312081565,1705605039245,-288.29553912,0.00022728,2]
[312081566,1705605039255,-164.13727905,0.00022745,2]
[312081567,1705605039266,-156.0,0.00022766,2]
[312081568,1705605039277,-182.71826451,0.000229,2]
[312081569,1705605039287,-288.29553912,0.000229,2]
[312081570,1705605039298,-164.13727905,0.000229,2]
[312081571,1705605039311,-270.25827341,0.000229,2]
[312081572,1705605039322,-13216.5708,0.000229,2]
[312081573,1705605039332,-549.334521,0.000229,2]
[312081574,1705605039345,-159.29303465,0.000229,2]
[312081575,1705605039357,-336.84440222,0.000229,2]
[312081576,1705605039367,-165.16,0.00022931,2]
[312081577,1705605039378,-163.82,0.0002295,2]
[312081578,1705605039389,-32306.35401336,0.0002298,2]
[312081579,1705605039401,-103240.0,0.00022986,2]
[312081580,1705605039411,-322.480167,0.00022995,2]
[312081581,1705605039422,-483.720251,0.00022995,2]
[312081582,1705605039432,-644.960335,0.00022995,2]
[312081583,1705605039442,-1080.733243,0.00022995,2]
[312081584,1705605039453,-1621.099864,0.00022995,2]
[312081585,1705605039464,-2161.466486,0.00022995,2]
[312081586,1705605039475,-1621.099864,0.00022995,2]
[312081587,1705605039486,-2431.649796,0.00022995,2]
[312081588,1705605039498,-3242.199728,0.00022995,2]
[312081589,1705605039509,-1418.462381,0.00022995,2]
[312081590,1705605039520,-2127.693571,0.00022995,2]
[312081591,1705605039531,-2836.924762,0.00022995,2]
[312081592,1705605039542,-945.641587,0.00022995,2]
[312081593,1705605039555,-1418.462381,0.00022995,2]
[312081594,1705605039565,-1891.283175,0.00022995,2]
[312081595,1705605039576,-483.720251,0.00022995,2]
[312081596,1705605039586,-725.580377,0.00022995,2]
[312081597,1705605039598,-967.440503,0.00022995,2]
[312081598,1705605039609,-1958.829002,0.00022995,2]
[312081599,1705605039621,-2938.243503,0.00022995,2]
[312081600,1705605039632,-3917.658004,0.00022995,2]
[312081601,1705605039643,-405.274966,0.00022995,2]
[312081603,1705605039654,-607.912449,0.00022995,2]
[312081606,1705605039665,-810.549932,0.00022995,2]
[312081608,1705605039675,-540.366621,0.00022995,2]
[312081610,1705605039687,-810.549932,0.00022995,2]
[312081612,1705605039698,-1080.733242,0.00022995,2]
[312081614,1705605039709,-810.549932,0.00022995,2]
[312081622,1705605039720,-1215.824898,0.00022995,2]
[312081623,1705605040154,-1621.099864,0.00022995,2]
[312081624,1705605040163,-405.274966,0.00022995,2]
[312081625,1705605040173,-607.912449,0.00022995,2]
[312081626,1705605040183,-810.549932,0.00022995,2]
[312081627,1705605040192,-607.912449,0.00022995,2]
[312081628,1705605040202,-911.868673,0.00022995,2]
[312081629,1705605040211,-1215.824898,0.00022995,2]
[312081630,1705605040220,-806.200419,0.00022996,2]
[312081631,1705605040232,-2701.833107,0.00022996,2]
[312081632,1705605040242,-4052.74966,0.00022996,2]
[312081633,1705605040253,-3546.155952,0.00022996,2]
[312081634,1705605040263,-2364.103968,0.00022996,2]
[312081635,1705605040272,-1209.300629,0.00022996,2]
[312081636,1705605040281,-4897.072506,0.00022996,2]
[312081637,1705605040291,-1013.187415,0.00022996,2]
[312081638,1705605040301,-1350.916553,0.00022996,2]
[312081639,1705605040311,-2026.37483,0.00022996,2]
[312081640,1705605040321,-1013.187415,0.00022996,2]
[312081641,1705605040333,-1519.781122,0.00022996,2]
[312081642,1705605040343,-1128.680586,0.00022997,2]
[312081644,1705605040352,-3782.56635,0.00022997,2]
[312081645,1705605040361,-5673.849524,0.00022997,2]
[312081646,1705605040370,-4964.618333,0.00022997,2]
[312081647,1705605040380,-3309.745556,0.00022997,2]
[312081648,1705605040389,-1693.020881,0.00022997,2]
[312081649,1705605040398,-6855.901508,0.00022997,2]
[312081650,1705605040407,-1418.462381,0.00022997,2]
[312081651,1705605040417,-1891.283175,0.00022997,2]
[312081652,1705605040426,-2836.924762,0.00022997,2]
[312081653,1705605040436,-1418.462381,0.00022997,2]
[312081654,1705605040445,-2127.693572,0.00022997,2]
[312081655,1705605040455,-2136.09469393,0.00022998,2]
[312081656,1705605040464,-399.88516974,0.00022998,2]
[312081657,1705605040473,-404.45887353,0.00022998,2]
[312081658,1705605040484,-465.12840912,0.00022998,2]
[312081659,1705605040493,-2677.25736094,0.00022998,2]
[312081660,1705605040503,-376.27644713,0.00022998,2]
[312081661,1705605040512,-2316.07344121,0.00022998,2]
[312081662,1705605040522,-523.33688238,0.00022998,2]
[312081663,1705605040531,-627.90541133,0.00022998,2]
[312081664,1705605040540,-284.84113665,0.00022998,2]
[312081665,1705605040550,-5437.35042652,0.00022998,2]
[312081666,1705605040559,-370.1632036,0.00022998,2]
[312081667,1705605040568,-765.80999369,0.00022998,2]
[312081668,1705605040577,-310.71054499,0.00022998,2]
[312081669,1705605040586,-528.68959497,0.00022998,2]
[312081670,1705605040595,-203.02938773,0.00022998,2]
[312081671,1705605040604,-3176.88800932,0.00022998,2]
[312081672,1705605040614,-155.0,0.00022998,2]
[312081673,1705605040623,-1703.01103885,0.00022998,2]
[312081674,1705605040632,-2604.97846412,0.00022998,2]
[312081675,1705605040642,-1289.92067,0.00022998,2]
[312081676,1705605040651,-4322.932972,0.00022998,2]
[312081677,1705605040660,-6484.399456,0.00022998,2]
[312081678,1705605040669,-5673.849524,0.00022998,2]
[312081679,1705605040678,-3782.56635,0.00022998,2]
[312081680,1705605040688,-1934.881007,0.00022998,2]
[312081681,1705605040697,-7835.316009,0.00022998,2]
[312081682,1705605040706,-1621.099864,0.00022998,2]
[312081683,1705605040715,-2161.466485,0.00022998,2]
[312081684,1705605040725,-3242.199728,0.00022998,2]
[312081685,1705605040736,-1621.099864,0.00022998,2]
[312081686,1705605040745,-2431.649796,0.00022998,2]
[312081687,1705605040755,-150.0,0.00022999,2]
[312081688,1705605040764,-150.0,0.00022999,2]
[312081689,1705605040773,-150.0,0.00022999,2]
[312081690,1705605040783,-150.0,0.00022999,2]
[312081691,1705605040792,-150.0,0.00022999,2]
[312081692,1705605040802,-150.0,0.00022999,2]
[312081693,1705605040811,-150.0,0.00022999,2]
[312081694,1705605040820,-150.0,0.00022999,2]
[312081695,1705605040829,-150.0,0.00022999,2]
[312081696,1705605040838,-150.0,0.00022999,2]
[312081697,1705605040848,-150.0,0.00022999,2]
[312081698,1705605040857,-150.0,0.00022999,2]
[312081699,1705605040867,-150.0,0.00022999,2]
[312081700,1705605040876,-150.0,0.00022999,2]
[312081701,1705605040885,-150.0,0.00022999,2]
[312081702,1705605040894,-150.0,0.00022999,2]
[312081703,1705605040903,-150.0,0.00022999,2]
[312081704,1705605040913,-150.0,0.00022999,2]
[312081705,1705605040922,-150.0,0.00022999,2]
[312081706,1705605040931,-150.0,0.00022999,2]
[312081707,1705605040940,-150.0,0.00022999,2]
[312081708,1705605040950,-150.0,0.00022999,2]
[312081709,1705605040960,-150.0,0.00022999,2]
[312081710,1705605040969,-150.0,0.00022999,2]
[312081711,1705605040979,-150.0,0.00022999,2]
[312081712,1705605040988,-150.0,0.00022999,2]
[312081713,1705605040997,-150.0,0.00022999,2]
[312081714,1705605041007,-150.0,0.00022999,2]
[312081715,1705605041016,-208.17628292,0.00022999,2]
[312081716,1705605041025,-150.0,0.00022999,2]
[312081717,1705605041034,-150.0,0.00022999,2]
[312081718,1705605041044,-150.0,0.00022999,2]
[312081719,1705605041054,-150.0,0.00022999,2]
[312081720,1705605041063,-150.0,0.00022999,2]
[312081721,1705605041072,-1944809.08463544,0.00023,3]
[312081722,1705605041081,-6394.71028512,0.00023,2]
[312081723,1705605041090,-4954189.21174328,0.00023,2]
[312081724,1705605041389,-512.56766737,0.00023,2]
[312081725,1705605041401,-2071.85,0.00023,2]
[312081726,1705605041415,-21153.18585854,0.00023,2]
[312081727,1705605041426,-46931.63372535,0.00023,2]
[312081728,1705605041649,-500.0,0.00021695,2]
[312081729,1705605041662,-560.96854815,0.00021695,2]
[312081730,1705605041671,-671.23145188,0.00023,2]
[312081731,1705605041682,-13147.47850408,0.00023,2]
[312081732,1705605041693,-40634.51966365,0.00023,2]
[312081733,1705605041711,-323.02359802,0.00023,2]
[312081734,1705605041727,-474.95197116,0.00023,2]
[312081735,1705605041739,-4567.029,0.00023,2]
[312081782,1705605042973,-29109.50491021,0.00023,2]
[312081794,1705605043148,-12351.49623705,0.00023,2]
[312081795,1705605043162,-4622.217984,0.00023,2]
[312081796,1705605043173,-443.052,0.00023,2]
[312081797,1705605043212,-1168.31073083,0.00023,2]
[312081798,1705605043224,-7444.92117329,0.00023,2]
[312081799,1705605043239,-3150.53306524,0.00023,2]
[312081800,1705605043255,-1192.55869115,0.00023,2]
[312081801,1705605043285,-332.28537817,0.00023,2]
[312081803,1705605043297,-397.09619031,0.00023,2]
[312081804,1705605043308,-991.63719256,0.00023,2]
[312081805,1705605043320,-2980.23596,0.00023,2]
[312081806,1705605044285,-3095.40794634,0.00022999,2]
[312081810,1705605044351,-1254.66216332,0.00022999,2]
[312081811,1705605044360,-142391.26476855,0.00023,2]
[312081820,1705605046060,-155.0,0.00022999,2]
[312081821,1705605046069,-439.91090339,0.00023,2]
[312081822,1705605046081,-585.65050295,0.00023,2]
[312081823,1705605046138,-215.11040998,0.00022999,2]
[312081824,1705605046148,-60666.31674964,0.00023,2]
[312081825,1705605046242,-22841.30700001,0.00023,2]
[312081826,1705605046254,-123150.0,0.00023,2]
[312081827,1705605046311,-190.90927065,0.00022999,2]
[312081828,1705605046321,-2842.47292884,0.00023,2]
[312081856,1705605049812,161.68586552,0.00020699,2]
[312081857,1705605063532,830.12545017,0.000195,2]
[312081858,1705605070421,2633.7949,0.00021513,2]
[312081859,1705605073808,161.68586552,0.00020697,2]
[312081860,1705605095789,161.68586552,0.00020696,2]
[312081861,1705605113790,161.68586552,0.00020695,2]
[312081862,1705605118694,11094.7501,0.0002151,2]
[312081865,1705605131794,161.68586552,0.00020695,2]
[312081866,1705605151812,161.68586552,0.00020695,2]
[312081867,1705605173802,271.2581229,0.00019794,2]
[312081868,1705605216980,2500.0,0.00021597,2]
[312081869,1705605252550,730.66371542,0.00021,2]
[312081870,1705605270779,170.0890639,0.00021,2]
[312081872,1705605366156,238.49,0.00019262,2]
[312081873,1705605366521,238.49,0.00021526,2]
[312081874,1705605373316,228.31585659,0.00019261,2]
[312081875,1705605385869,167.34,0.00021257,2]
[312081876,1705605386293,167.34,0.00021478,2]
[312081891,1705605578998,4370.6568,0.00021569,2]
[312081892,1705605594342,5356.9595,0.00021592,2]
[312081893,1705605616176,341.79,0.00021072,2]
[312081894,1705605616965,168.41,0.00021072,2]
[312081895,1705605621823,2000.0,0.00021273,2]
[312081902,1705605634200,452.94,0.00021107,2]
[312081903,1705605692096,416.0,0.00021066,2]
[312081923,1705605825573,214.64,0.00019355,2]
[312081924,1705605854774,169.68,0.00016834,2]
[312081925,1705605874611,167.34,0.00021124,2]
[312081926,1705605874657,167.34,0.00021491,2]
[312081933,1705605919651,721.84,0.00021491,2]
[312081940,1705605989947,190.90927065,0.00021601,2]
[312081941,1705605990073,843.17283709,0.00021601,2]
[312081942,1705605995726,155.0,0.00021601,2]
[312081943,1705605996399,228.31585659,0.00021601,2]
[312081944,1705605999746,215.11040998,0.00021601,2]
[312081945,1705606014812,1060.96854815,0.00021601,2]
[312081946,1705606019288,3030.11138034,0.00021601,2]
[312081947,1705606019601,2020.53490244,0.00021601,2]
[312081949,1705606025037,310.19748729,0.00021601,2]
[312081950,1705606026226,155.0,0.00021601,2]
[312081951,1705606026652,527.95807681,0.00021601,2]
[312081952,1705606030863,22610.19820045,0.00021601,2]
[312081953,1705606033764,157.18220401,0.00021503,2]
[312081954,1705606039035,310.59668083,0.00021601,2]
[312081964,1705606044866,4636.82100287,0.00021385,2]
[312081965,1705606045256,4247.28131875,0.00021601,2]
[312081966,1705606048250,155.0,0.00021601,2]
[312081967,1705606058574,843.17283709,0.00021601,2]
[312081968,1705606059308,1064.59180411,0.00021601,2]
[312081969,1705606070223,155.0,0.00021601,2]
[312081970,1705606072140,155.0,0.00021601,2]
[312081971,1705606074256,215.11040998,0.00021601,2]
[312081972,1705606080615,843.17283709,0.00021601,2]
[312081973,1705606082220,155.0,0.00021601,2]
[312081974,1705606087106,168.41,0.00021043,2]
[312081975,1705606088223,188.14874811,0.00021601,2]
[312081976,1705606092268,3030.11138034,0.00021601,2]
[312081977,1705606093352,1060.96854815,0.00021601,2]
[312081978,1705606094530,170.89,0.00021106,2]
[312081979,1705606096257,215.11040998,0.00021601,2]
[312081980,1705606102487,193.17462862,0.00021601,2]
[312081981,1705606102587,511.95582396,0.00021601,2]
[312081985,1705606110272,2007.93596014,0.00021601,2]
[312081987,1705606113322,642.5398304,0.00021601,2]
[312081988,1705606122256,215.11040998,0.00021601,2]
[312081989,1705606128898,867.19372156,0.000216,2]
[312081990,1705606138295,246.1525068,0.00021601,2]
[312081991,1705606142891,278.02793762,0.00021601,2]
[312082027,1705606232148,-547.03,0.00021602,2]
[312082030,1705606232210,-1653.91470255,0.00021602,2]
[312082031,1705606232222,-468.15,0.00021602,2]
[312082032,1705606232233,-491.95,0.00021602,2]
[312082033,1705606232245,-612.83195705,0.00021602,2]
[312082034,1705606232271,-415.99032,0.00021602,2]
[312082035,1705606232283,-1042.42601603,0.00021602,2]
[312082036,1705606232294,-1403.57398397,0.00021602,2]
[312082037,1705606232306,-792.99802951,0.00021602,2]
[312082038,1705606232332,-977.0591856,0.00021602,2]
[312082039,1705606232413,-327.1268,0.00021602,2]
[312082043,1705606232516,-673.01,0.00021602,2]
[312082081,1705606238183,-1452.325875,0.00021602,2]
[312082082,1705606238197,-5905.31542736,0.00021602,2]
[312082083,1705606238209,-129364.52515324,0.00021603,2]
[312082084,1705606238219,-260.45714886,0.00021606,2]
[312082085,1705606238230,-320.66270303,0.00021606,2]
[312082086,1705606238241,-1584.50735523,0.00021606,2]
[312082087,1705606238252,-214.64,0.00021619,2]
[312082088,1705606238262,-2136.09469393,0.00021686,2]
[312082089,1705606238274,-10660.39416462,0.00021692,2]
[312082090,1705606238284,-182.7182645,0.00021758,2]
[312082091,1705606238296,-431.15922468,0.00021758,2]
[312082092,1705606238307,-2604.97846412,0.00021787,2]
[312082093,1705606238318,-1703.01103885,0.00021787,2]
[312082094,1705606238328,-5437.35042652,0.00021787,2]
[312082095,1705606238339,-765.80999369,0.00021787,2]
[312082096,1705606238350,-203.02938773,0.00021787,2]
[312082097,1705606238360,-528.68959497,0.00021787,2]
[312082098,1705606238371,-284.84113665,0.00021787,2]
[312082099,1705606238382,-155.0,0.00021787,2]
[312082100,1705606238393,-370.1632036,0.00021787,2]
[312082101,1705606238404,-3176.88803406,0.00021787,2]
[312082102,1705606238415,-376.27644713,0.00021787,2]
[312082103,1705606238426,-627.90541133,0.00021787,2]
[312082104,1705606238437,-2677.25736094,0.00021787,2]
[312082105,1705606238448,-2316.07344121,0.00021787,2]
[312082106,1705606238460,-404.45887353,0.00021787,2]
[312082107,1705606238472,-523.33688238,0.00021787,2]
[312082108,1705606238482,-465.12840912,0.00021787,2]
[312082109,1705606238494,-1022.55,0.00021787,2]
[312082110,1705606238508,-399.88516974,0.00021788,2]
[312082111,1705606238522,-3570.11,0.00021798,2]
[312082112,1705606238534,-695.39,0.00021798,2]
[312082113,1705606238546,-505714.14246892,0.000218,2]
[312082114,1705606238559,-167.34,0.00021858,2]
[312082115,1705606238571,-250.0,0.00021918,2]
[312082116,1705606238581,-431.15922464,0.00021921,2]
[312082117,1705606238592,-419.95,0.00021973,2]
[312082119,1705606238604,-2122.90103402,0.00021991,2]
[312082121,1705606238615,-157.92900519,0.00021991,2]
[312082123,1705606238625,-724.76,0.00021995,2]
[312082125,1705606238636,-729.68,0.00021997,2]
[312082126,1705606238646,-250.0,0.00021999,2]
[312082128,1705606238657,-712.75,0.00022,2]
[312082130,1705606238668,-788.85242177,0.00022,2]
[312082133,1705606238679,-150.0,0.00022,2]
[312082135,1705606238689,-1041.88400935,0.00022,2]
[312082137,1705606238700,-155.0,0.00022,2]
[312082139,1705606238711,-584.0,0.00022003,2]
[312082141,1705606238721,-431.15922464,0.00022084,2]
[312082143,1705606238732,-156.72,0.00022125,2]
[312082145,1705606238743,-157.18220399,0.00022202,2]
[312082148,1705606238754,-167.34,0.00022225,2]
[312082150,1705606238765,-737.31,0.00022226,2]
[312082152,1705606238775,-250.0,0.00022273,2]
[312082154,1705606238786,-182.7182645,0.00022329,2]
[312082156,1705606238796,-250.0,0.00022547,2]
[312082158,1705606238807,-7999.99,0.00022547,3]
[312082160,1705606238817,-150.0,0.00022548,2]
[312082162,1705606238827,-224.05,0.00022643,2]
[312082165,1705606238839,-2935.0,0.0002277,2]
[312082167,1705606238849,-3263.922,0.00022897,2]
[312082169,1705606238860,-547.03,0.000229,2]
[312082171,1705606238871,-186.18880339,0.000229,2]
[312082173,1705606238881,-60045.98281802,0.000229,2]
[312082175,1705606238892,-157.18220399,0.000229,2]
[312082177,1705606238902,-182.7182645,0.000229,2]
[312082180,1705606238913,-1000.0,0.000229,2]
[312082182,1705606238924,-1727.62223056,0.000229,2]
[312082184,1705606238934,-797.47718878,0.000229,2]
[312082186,1705606238944,-1123.58409018,0.000229,2]
[312082188,1705606238955,-1422.66509119,0.000229,6]
[312082190,1705606238965,-868.53201543,0.000229,2]
[312082192,1705606238976,-168.39287458,0.00022994,2]
[312082194,1705606238987,-553.875787,0.00022995,2]
[312082196,1705606238997,-830.81368,0.00022995,2]
[312082197,1705606239008,-1107.751574,0.00022995,2]
[312082198,1705606239019,-864.586594,0.00022995,2]
[312082199,1705606239029,-1296.879891,0.00022995,2]
[312082200,1705606239041,-1729.173188,0.00022995,2]
[312082201,1705606239052,-540.366621,0.00022995,2]
[312082202,1705606239062,-810.549932,0.00022995,2]
[312082203,1705606239073,-1080.733243,0.00022995,2]
[312082204,1705606239084,-423.255219,0.00022995,2]
[312082205,1705606239095,-634.882829,0.00022995,2]
[312082207,1705606239106,-846.510439,0.00022995,2]
[312082210,1705606239117,-5141.926131,0.00022995,2]
[312082212,1705606239127,-7712.889196,0.00022995,2]
[312082214,1705606239138,-10283.852262,0.00022995,2]
[312082216,1705606239148,-1384.689467,0.00022996,2]
[312082218,1705606239159,-2161.466485,0.00022996,2]
[312082220,1705606239170,-1350.916553,0.00022996,2]
[312082222,1705606239181,-1058.138049,0.00022996,2]
[312082224,1705606239192,-12854.815328,0.00022996,2]
[312082227,1705606239203,-171.79656324,0.00022997,2]
[312082229,1705606239214,-542.62714348,0.00022997,2]
[312082231,1705606239224,-1316.3726487,0.00022997,2]
[312082233,1705606239235,-1370.98811656,0.00022997,2]
[312082235,1705606239245,-1255.53256283,0.00022997,2]
[312082237,1705606239255,-158.7139359,0.00022997,2]
[312082240,1705606239266,-354.27308638,0.00022997,2]
[312082242,1705606239276,-2796.84901767,0.00022997,2]
[312082244,1705606239286,-155.0,0.00022997,2]
[312082246,1705606239296,-1938.565254,0.00022997,2]
[312082248,1705606239307,-3026.05308,0.00022997,2]
[312082250,1705606239317,-1891.283175,0.00022997,2]
[312082252,1705606239327,-1481.393269,0.00022997,2]
[312082254,1705606239337,-17996.741459,0.00022997,2]
[312082257,1705606239348,-293.54629117,0.00022998,2]
[312082259,1705606239359,-231.88293603,0.00022998,2]
[312082261,1705606239369,-2215.503148,0.00022998,2]
[312082263,1705606239379,-3458.346377,0.00022998,2]
[312082265,1705606239389,-2161.466486,0.00022998,2]
[312082267,1705606239400,-1693.020879,0.00022998,2]
[312082269,1705606239409,-20567.704524,0.00022998,2]
[312082271,1705606239420,-18396.59272641,0.00022998,2]
[312082274,1705606239431,-567.24118273,0.00022999,2]
[312082276,1705606239441,-2618.74812066,0.00022999,2]
[312082278,1705606239451,-3043.00044003,0.00022999,2]
[312082280,1705606239462,-150.0,0.00022999,2]
[312082282,1705606239472,-150.0,0.00022999,2]
[312082284,1705606239482,-150.0,0.00022999,2]
[312082286,1705606239492,-150.0,0.00022999,2]
[312082289,1705606239503,-150.0,0.00022999,2]
[312082291,1705606239518,-150.0,0.00022999,2]
[312082293,1705606239528,-150.0,0.00022999,2]
[312082295,1705606239539,-150.0,0.00022999,2]